bitfinex-derivatives/quotes_BTCF0:USTF0_20260107
["timestamp","ask_amount","ask_price","bid_price","bid_amount"]
[1767745820297,0.07097366,93422.0,93410.0,0.01071]
[1767745820499,0.07097366,93422.0,93412.0,0.01071]
[1767745820799,0.09108,93435.0,93412.0,0.11077574]
[1767745821005,0.010707,93433.0,93421.0,0.04060462]
[1767745821399,0.010707,93433.0,93417.0,0.010709]
[1767745821803,0.010707,93431.0,93417.0,0.010709]
[1767745822102,0.010707,93437.0,93422.0,0.010708]
[1767745822308,0.04066541,93441.0,93422.0,0.03076025]
[1767745822510,0.010707,93431.0,93416.0,0.010709]
[1767745822807,0.010707,93434.0,93416.0,0.010709]
[1767745823204,0.07097366,93436.0,93413.0,0.010709]
[1767745823411,0.07097366,93424.0,93414.0,0.09108]
[1767745823605,0.11163907,93424.0,93415.0,0.09108]
[1767745823802,0.010706,93441.0,93400.0,0.07017112]
[1767745823803,0.07097366,93421.0,93400.0,0.07017112]
[1767745824011,0.07097366,93419.0,93406.0,0.01071]
[1767745824203,0.07097366,93419.0,93407.0,0.08953]
[1767745824405,0.07097366,93419.0,93408.0,0.01071]
[1767745825000,0.07097366,93419.0,93407.0,0.09108]
[1767745825506,0.07097366,93419.0,93407.0,0.08892]
[1767745825706,0.04066541,93424.0,93408.0,0.01071]
[1767745825914,0.07097366,93423.0,93407.0,0.09108]
[1767745826119,0.08168166,93422.0,93407.0,0.09108]
[1767745826313,0.08168166,93422.0,93407.0,0.01251]
[1767745827013,0.010709,93420.0,93407.0,0.01251]
[1767745827609,0.07097366,93422.0,93407.0,0.01251]
[1767745828010,0.11163907,93427.0,93413.0,0.010709]
[1767745828209,0.11163907,93423.0,93408.0,0.01071]
[1767745828411,0.07097366,93420.0,93408.0,0.01071]
[1767745828614,0.04066541,93424.0,93407.0,0.09108]
[1767745829020,0.11163907,93424.0,93407.0,0.08924]
[1767745829613,0.11163907,93431.0,93413.0,0.010709]
[1767745829817,0.09108,93432.0,93415.0,0.08088012]
[1767745830014,0.09108,93432.0,93410.0,0.09014708]
[1767745830313,0.010707,93436.0,93410.0,0.09014708]
[1767745830515,0.010707,93436.0,93415.0,0.010709]
[1767745830817,0.07097366,93437.0,93424.0,0.010708]
[1767745833520,0.07097366,93437.0,93419.0,0.0497607]
[1767745833719,0.07097366,93437.0,93423.0,0.010708]
[1767745834020,0.07097366,93437.0,93418.0,0.09108]
[1767745834617,0.09108,93442.0,93428.0,0.010708]
[1767745835517,0.08407097,93456.0,93429.0,0.09108]
[1767745836026,0.13294997,93443.0,93421.0,0.03339392]
[1767745836320,0.11265309,93460.0,93428.0,0.010708]
[1767745836321,0.08407097,93441.0,93428.0,0.010708]
[1767745836914,0.08407097,93441.0,93432.0,0.010707]
[1767745837925,0.08407097,93448.0,93432.0,0.010707]
[1767745838423,0.08407097,93448.0,93429.0,0.0057039]
[1767745838424,0.09477697,93445.0,93430.0,0.010708]
[1767745839216,0.09477697,93442.0,93427.0,0.010708]
[1767745839423,0.08407097,93439.0,93427.0,0.010708]
[1767745839625,0.08407097,93448.0,93431.0,0.00521842]
[1767745839925,0.08407097,93448.0,93418.0,0.28457514]
[1767745839926,0.048879,93445.0,93433.0,0.010707]
[1767745840130,0.08407097,93443.0,93431.0,0.09108]
[1767745840820,0.08407097,93443.0,93432.0,0.010707]
[1767745841317,0.13294997,93443.0,93421.0,0.004316]
[1767745841524,0.08407097,93439.0,93427.0,0.010708]
[1767745841828,0.08407097,93439.0,93428.0,0.09108]
[1767745842418,0.08407097,93439.0,93428.0,0.101788]
[1767745842930,0.08407097,93439.0,93432.0,0.010707]
[1767745843524,0.08407097,93439.0,93434.0,0.010707]
[1767745843727,0.08407097,93439.0,93428.0,0.09108]
[1767745845226,0.08407097,93439.0,93434.0,0.010707]
[1767745845424,0.08407097,93439.0,93423.0,0.010708]
[1767745845622,0.08407097,93439.0,93424.0,0.09108]
[1767745846025,0.08407097,93439.0,93424.0,0.01371434]
[1767745847330,0.048879,93434.0,93413.0,0.13306586]
[1767745847533,9.7e-07,93433.0,93430.0,0.010707]
[1767745847729,0.00214022,93449.0,93434.0,0.01276586]
[1767745847937,0.00214022,93449.0,93439.0,0.010706]
[1767745848433,0.00214022,93449.0,93441.0,0.010706]
[1767745849630,0.13294997,93447.0,93432.0,0.010707]
[1767745849830,0.08407097,93444.0,93428.0,0.09108]
[1767745850136,0.08407097,93444.0,93429.0,0.010708]
[1767745850540,0.08407097,93444.0,93434.0,0.0900793]
[1767745850737,9.7e-07,93445.0,93442.0,0.010706]
[1767745850939,0.00214022,93449.0,93434.0,0.0900793]
[1767745851132,0.00214022,93449.0,93430.0,0.0900793]
[1767745851332,0.00214022,93449.0,93428.0,0.09108]
[1767745851333,0.08407097,93439.0,93428.0,0.09108]
[1767745851534,0.08407097,93439.0,93428.0,0.101788]
[1767745852432,0.08407097,93439.0,93429.0,0.1007873]
[1767745852832,0.08407097,93439.0,93429.0,0.0900793]
[1767745853135,0.08407097,93439.0,93434.0,0.010707]
[1767745854134,0.08407097,93439.0,93436.0,0.010707]
[1767745854737,9.7e-07,93439.0,93436.0,0.010707]
[1767745854936,0.048879,93444.0,93433.0,0.010707]
[1767745856636,0.048879,93444.0,93435.0,0.010707]
[1767745856831,0.13294997,93444.0,93436.0,0.010707]
[1767745857542,0.13294997,93444.0,93429.0,0.0900793]
[1767745858343,0.13294997,93444.0,93428.0,0.09108]
[1767745858543,0.09968554,93443.0,93439.0,0.010706]
[1767745858742,5.4e-07,93443.0,93430.0,0.0900793]
[1767745858938,0.048879,93444.0,93441.0,0.010706]
[1767745859444,0.06383395,93448.0,93441.0,0.010706]
[1767745859742,0.06293395,93448.0,93439.0,0.010706]
[1767745860637,0.06293395,93448.0,93436.0,0.010707]
[1767745860845,0.09968554,93448.0,93436.0,0.010707]
[1767745861043,0.09968554,93448.0,93430.0,0.1007863]
[1767745861234,0.09968554,93448.0,93437.0,0.010707]
[1767745861543,0.09968554,93448.0,93430.0,0.1007863]
[1767745861738,0.15676306,93447.0,93430.0,0.1007863]
[1767745861939,0.06217455,93445.0,93430.0,0.0900793]
[1767745862443,0.07288055,93445.0,93433.0,0.010707]
[1767745862644,0.06217455,93445.0,93433.0,0.010707]
[1767745863045,0.06217455,93445.0,93430.0,0.0900793]
[1767745863046,0.06217455,93445.0,93434.0,0.010707]
[1767745863659,0.07288055,93445.0,93434.0,0.010707]
[1767745864146,0.07288055,93445.0,93432.0,0.010707]
[1767745864343,0.00214022,93449.0,93419.0,0.09753226]
[1767745864344,0.06217455,93438.0,93419.0,0.09753226]
[1767745864543,0.06217455,93431.0,93417.0,0.101099]
[1767745864743,0.07288155,93431.0,93417.0,0.101099]
[1767745864942,0.07288155,93431.0,93417.0,0.010059]
[1767745865144,0.07288155,93431.0,93404.0,0.01071]
[1767745865145,0.07288255,93427.0,93411.0,0.01071]
[1767745865338,0.06217455,93422.0,93411.0,0.01071]
[1767745865553,0.06217455,93421.0,93411.0,0.01060718]
[1767745867248,0.06217455,93419.0,93396.0,0.03305998]
[1767745867443,0.06217455,93417.0,93400.0,0.0900793]
[1767745867745,0.15676306,93417.0,93397.0,0.09104]
[1767745868051,0.06217455,93416.0,93400.0,0.0900793]
[1767745868649,0.06217455,93416.0,93404.0,0.01071]
[1767745869152,0.06217455,93416.0,93404.0,0.01061]
[1767745869344,0.07592445,93416.0,93397.0,0.0968352]
[1767745869544,0.07592445,93416.0,93400.0,0.0900793]
[1767745869750,0.0137499,93416.0,93400.0,0.0900793]
[1767745869942,0.09458851,93417.0,93400.0,0.0900793]
[1767745870142,0.09458851,93417.0,93406.0,0.01071]
[1767745870350,0.09458851,93417.0,93400.0,0.0900793]
[1767745870351,0.09458851,93417.0,93400.0,0.0776393]
[1767745870546,0.01373233,93420.0,93403.0,0.00541021]
[1767745870757,0.09458851,93430.0,93411.0,0.00541021]
[1767745871053,0.18780873,93449.0,93435.0,0.010707]
[1767745871249,0.06217455,93448.0,93430.0,0.0900793]
[1767745871951,0.15676306,93448.0,93440.0,0.010706]
[1767745872352,0.15676306,93448.0,93430.0,0.0900793]
[1767745872555,0.15676306,93448.0,93440.0,0.010706]
[1767745872851,0.15676306,93447.0,93437.0,0.010707]
[1767745873353,0.06217455,93446.0,93439.0,0.010706]
[1767745874255,0.15676306,93446.0,93439.0,0.010706]
[1767745874457,0.15676306,93446.0,93429.0,0.010708]
[1767745874646,0.10667418,93449.0,93439.0,0.010706]
[1767745874949,0.15676306,93448.0,93439.0,0.010706]
[1767745875256,0.06217455,93447.0,93429.0,0.010708]
[1767745875554,0.06217455,93446.0,93440.0,0.010706]
[1767745875756,0.010703,93466.0,93448.0,0.010705]
[1767745876058,0.010704,93464.0,93447.0,0.010706]
[1767745876650,2.1e-07,93464.0,93441.0,0.09753226]
[1767745876849,0.09108,93471.0,93446.0,0.09753226]
[1767745877350,0.09108,93471.0,93454.0,0.010705]
[1767745877548,0.09108,93471.0,93456.0,0.010704]
[1767745877756,0.06217455,93468.0,93456.0,0.010704]
[1767745878261,0.07560466,93468.0,93456.0,0.010704]
[1767745878458,0.07560466,93468.0,93452.0,0.010705]
[1767745878859,0.06217455,93467.0,93455.0,0.010705]
[1767745879254,0.06217455,93467.0,93446.0,0.09753226]
[1767745879449,0.06217455,93467.0,93457.0,0.010704]
[1767745879762,0.06217455,93467.0,93454.0,0.010705]
[1767745880454,0.10801862,93468.0,93434.0,0.09753226]
[1767745880455,0.06217455,93456.0,93434.0,0.09753226]
[1767745880653,0.06217455,93451.0,93439.0,0.010706]
[1767745880960,0.09458851,93452.0,93439.0,0.101746]
[1767745882164,0.07287955,93455.0,93439.0,0.080062]
[1767745882549,0.15676306,93452.0,93439.0,0.080062]
[1767745882751,0.06217455,93441.0,93421.0,0.06054]
[1767745882955,0.06217455,93440.0,93421.0,0.06054]
[1767745883156,0.06217455,93440.0,93428.0,0.010708]
[1767745883559,0.06217455,93445.0,93423.0,0.05936749]
[1767745883863,0.010703,93471.0,93422.0,0.09104]
[1767745883864,0.09104,93455.0,93443.0,0.010706]
[1767745884048,0.010655,93456.0,93435.0,0.05936749]
[1767745884247,0.15676306,93453.0,93440.0,0.010706]
[1767745885162,0.15576306,93453.0,93437.0,0.010707]
[1767745885962,0.15576306,93453.0,93439.0,0.010706]
[1767745886262,0.15576306,93453.0,93441.0,0.010706]
[1767745887265,0.15576306,93453.0,93432.0,0.09104]
[1767745887266,0.06217455,93452.0,93432.0,0.09104]
[1767745887464,0.06217455,93452.0,93440.0,0.010706]
[1767745887764,0.06217455,93452.0,93442.0,0.010706]
[1767745888863,0.06217455,93449.0,93439.0,0.010706]
[1767745889466,0.06217455,93449.0,93426.0,0.010708]
[1767745889467,0.06217455,93441.0,93430.0,0.010707]
[1767745889769,0.15676306,93440.0,93429.0,0.09104]
[1767745890068,0.15676306,93440.0,93428.0,0.09104]
[1767745890565,0.09458851,93437.0,93412.0,0.05376853]
[1767745890768,0.06217455,93434.0,93426.0,0.010708]
[1767745891266,0.06217455,93434.0,93419.0,0.0059489]
[1767745891664,0.06217455,93434.0,93420.0,0.09104]
[1767745891859,0.06744471,93432.0,93412.0,0.05376853]
[1767745892060,0.16661688,93432.0,93419.0,0.010709]
[1767745892261,0.101746,93447.0,93410.0,0.06703226]
[1767745892262,0.16661688,93430.0,93410.0,0.06703226]
[1767745892467,0.09917217,93429.0,93416.0,0.09104]
[1767745892656,0.09917217,93428.0,93416.0,0.0437]
[1767745892861,0.16661688,93427.0,93417.0,0.010709]
[1767745893658,0.16661688,93424.0,93411.0,0.01071]
[1767745893862,0.06744471,93422.0,93409.0,0.09104]
[1767745894565,0.09917217,93423.0,93412.0,0.010709]
[1767745894762,0.09917217,93423.0,93415.0,0.010709]
[1767745895163,0.09917217,93423.0,93417.0,0.010709]
[1767745895470,0.09917217,93430.0,93419.0,0.010709]
[1767745895871,0.16661688,93430.0,93419.0,0.010709]
[1767745896372,0.09917217,93429.0,93407.0,0.09104]
[1767745896773,0.09917217,93429.0,93407.0,0.08724]
[1767745897072,0.16661688,93428.0,93407.0,0.08724]
[1767745897770,0.16661688,93428.0,93417.0,0.010709]
[1767745898170,0.17732488,93428.0,93414.0,0.010709]
[1767745898370,0.06744471,93418.0,93393.0,0.00377177]
[1767745898568,0.010707,93434.0,93394.0,0.09104]
[1767745898569,0.16661688,93416.0,93394.0,0.09104]
[1767745898776,0.16661688,93416.0,93409.0,0.01071]
[1767745898968,0.16661688,93416.0,93399.0,0.09104]
[1767745899164,0.06744471,93415.0,93399.0,0.09104]
[1767745899372,0.16661688,93411.0,93401.0,0.010711]
[1767745899568,0.16661688,93411.0,93401.0,0.01066244]
[1767745899975,0.09917217,93411.0,93401.0,0.01066244]
[1767745900275,0.09917217,93411.0,93396.0,0.00779244]
[1767745900976,0.09917217,93417.0,93407.0,0.01071]
[1767745901181,0.16661688,93416.0,93404.0,0.01071]
[1767745901474,0.09917217,93414.0,93404.0,0.01071]
[1767745901676,0.09917217,93414.0,93397.0,0.09108]
[1767745902075,0.09917217,93413.0,93403.0,0.010711]
[1767745902576,0.09917217,93413.0,93405.0,0.01071]
[1767745903882,0.09917217,93412.0,93402.0,0.010711]
[1767745904468,0.09917217,93412.0,93404.0,0.01071]
[1767745905881,0.09917217,93412.0,93396.0,0.00165]
[1767745906181,0.09917217,93412.0,93404.0,0.01071]
[1767745907081,0.09917217,93412.0,93406.0,0.01071]
[1767745908778,0.09917217,93412.0,93406.0,0.00793]
[1767745909082,0.09917217,93412.0,93407.0,0.01071]
[1767745909585,0.06744471,93418.0,93405.0,0.01071]
[1767745910385,0.06744471,93418.0,93407.0,0.01071]
[1767745910685,0.07815371,93416.0,93395.0,0.015081]
[1767745910878,0.06744471,93410.0,93395.0,0.015081]
[1767745911080,0.06744471,93404.0,93388.0,0.010712]
[1767745911282,0.06744471,93396.0,93371.0,0.00010426]
[1767745911477,0.06744471,93391.0,93381.0,0.010713]
[1767745911681,0.06744471,93391.0,93371.0,0.00010426]
[1767745911682,0.06744471,93389.0,93371.0,0.00010426]
[1767745911978,0.09917217,93388.0,93371.0,0.00010426]
[1767745912186,0.16661688,93385.0,93374.0,0.010714]
[1767745912382,0.16661688,93384.0,93371.0,0.00010426]
[1767745912575,0.09917217,93384.0,93378.0,0.010713]
[1767745912884,0.010711,93404.0,93386.0,0.010713]
[1767745913179,0.09108,93403.0,93380.0,0.010713]
[1767745913381,0.010712,93395.0,93379.0,0.010713]
[1767745913587,0.010711,93398.0,93379.0,0.010713]
[1767745914177,0.010711,93398.0,93371.0,0.00010426]
[1767745914178,0.09108,93403.0,93371.0,0.00010426]
[1767745914383,0.010712,93396.0,93377.0,0.010714]
[1767745914582,0.010712,93396.0,93377.0,0.004484]
[1767745914789,0.06744471,93394.0,93377.0,0.004484]
[1767745915086,0.16661688,93389.0,93363.0,0.09664582]
[1767745915276,0.00011072,93388.0,93376.0,0.010714]
[1767745915479,0.1667276,93388.0,93363.0,0.09492582]
[1767745915678,0.16661688,93385.0,93374.0,0.010714]
[1767745915884,0.06744471,93382.0,93361.0,0.101795]
[1767745916384,0.00011072,93388.0,93361.0,0.082855]
[1767745916588,0.06744471,93383.0,93373.0,0.010714]
[1767745918088,0.09522351,93380.0,93362.0,0.010715]
[1767745918390,0.08401407,93379.0,93362.0,0.010715]
[1767745919192,0.08401407,93379.0,93374.0,0.010714]
[1767745919495,7e-08,93379.0,93374.0,0.010714]
[1767745919991,0.09108,93383.0,93374.0,0.010714]
[1767745921194,0.09108,93383.0,93363.0,0.17484322]
[1767745921390,0.09108,93383.0,93376.0,0.010714]
[1767745921686,0.18405001,93381.0,93359.0,0.00214228]
[1767745921890,0.08466318,93365.0,93320.0,0.09108]
[1767745922098,0.18405001,93355.0,93320.0,0.09108]
[1767745922393,0.09108,93362.0,93350.0,0.010717]
[1767745922890,0.09108,93362.0,93351.0,0.010716]
[1767745923094,0.09108,93362.0,93335.0,0.010718]
[1767745923299,0.18405001,93362.0,93354.0,0.010716]
[1767745923589,0.09108,93362.0,93340.0,0.010718]
[1767745923780,0.09108,93362.0,93353.0,0.010716]
[1767745923984,0.08466318,93373.0,93350.0,0.09927529]
[1767745924191,0.08466318,93371.0,93359.0,0.010716]
[1767745924388,0.08466318,93371.0,93361.0,0.010715]
[1767745924597,0.09108,93370.0,93361.0,0.010715]
[1767745924986,0.08466318,93369.0,93344.0,0.09927529]
[1767745925184,0.08466318,93367.0,93353.0,0.010716]
[1767745925385,0.08466318,93367.0,93340.0,0.010718]
[1767745925386,0.08466318,93367.0,93345.0,0.09927529]
[1767745925589,0.09112,93366.0,93350.0,0.09927529]
[1767745926198,0.09112,93366.0,93345.0,0.07257117]
[1767745926390,0.09112,93366.0,93355.0,0.010716]
[1767745926896,0.09112,93365.0,93356.0,0.010716]
[1767745927096,0.09112,93364.0,93356.0,0.010716]
[1767745927292,0.09112,93363.0,93356.0,0.010716]
[1767745927693,0.08466318,93362.0,93344.0,0.010717]
[1767745927992,0.08466318,93362.0,93340.0,0.09927529]
[1767745928186,0.08466318,93362.0,93334.0,0.19035529]
[1767745928388,0.08466318,93362.0,93335.0,0.010718]
[1767745928692,0.08466318,93362.0,93334.0,0.18915529]
[1767745928898,0.08466318,93360.0,93347.0,0.010717]
[1767745929290,0.08466318,93359.0,93335.0,0.010718]
[1767745929490,0.08466318,93359.0,93334.0,0.09987229]
[1767745929491,0.08466318,93365.0,93352.0,0.010716]
[1767745929697,0.010714,93372.0,93348.0,0.07812608]
[1767745929887,0.08466318,93376.0,93360.0,0.010716]
[1767745930085,0.09112,93372.0,93360.0,0.010716]
[1767745930293,0.08466318,93376.0,93344.0,0.08321308]
[1767745930596,0.08466318,93376.0,93363.0,0.010715]
[1767745930902,0.08466318,93374.0,93361.0,0.010715]
[1767745931901,0.09938683,93367.0,93346.0,0.09112]
[1767745932198,0.08466318,93364.0,93344.0,0.09112]
[1767745932401,0.08466318,93340.0,93304.0,0.04777512]
[1767745932600,0.010715,93364.0,93320.0,0.08884608]
[1767745932805,0.09938683,93355.0,93327.0,0.07812608]
[1767745933002,0.09938683,93355.0,93336.0,0.010718]
[1767745933295,0.1982,100740.0,93336.0,0.07812608]
[1767745933296,9.031e-05,93354.0,93336.0,0.07812608]
[1767745933603,9.031e-05,93354.0,93333.0,0.010719]
[1767745933604,0.09112,93361.0,93353.0,0.010716]
[1767745933797,0.09112,93365.0,93350.0,0.010717]
[1767745934099,0.09112,93365.0,93352.0,0.010716]
[1767745934402,7.555e-05,93364.0,93340.0,0.07812608]
[1767745934593,7.555e-05,93364.0,93347.0,0.010717]
[1767745934793,7.555e-05,93364.0,93342.0,0.07812608]
[1767745934992,7.555e-05,93364.0,93345.0,0.17740137]
[1767745935188,0.08466318,93373.0,93359.0,0.010716]
[1767745935400,0.09112,93372.0,93356.0,0.010716]
[1767745935597,0.19476401,93371.0,93353.0,0.010716]
[1767745935802,0.08466318,93357.0,93343.0,0.09112]
[1767745936001,0.18405001,93355.0,93343.0,0.09112]
[1767745936302,0.18405001,93355.0,93340.0,0.010718]
[1767745936893,0.18405001,93354.0,93340.0,0.010718]
[1767745937101,0.18405001,93354.0,93335.0,0.029698]
[1767745937302,0.18405001,93354.0,93341.0,0.010718]
[1767745938101,0.18405001,93354.0,93333.0,0.09112]
[1767745938601,0.18405001,93353.0,93337.0,0.010718]
[1767745938797,0.08466318,93351.0,93333.0,0.074308]
[1767745939002,0.18405001,93351.0,93333.0,0.074308]
[1767745939202,0.08466318,93350.0,93333.0,0.074308]
[1767745939404,0.08466318,93349.0,93337.0,0.010718]
[1767745939798,0.08466318,93347.0,93333.0,0.074308]
[1767745940399,0.08466318,93347.0,93326.0,0.20855076]
[1767745940904,0.08466318,93347.0,93339.0,0.010718]
[1767745942006,0.09112,93351.0,93342.0,0.010718]
[1767745942904,0.010715,93363.0,93339.0,0.17740137]
[1767745943100,0.09112,93362.0,93340.0,0.09927529]
[1767745943300,0.010715,93361.0,93340.0,0.00981229]
[1767745943499,0.11010183,93361.0,93341.0,0.010718]
[1767745943799,0.08466318,93355.0,93326.0,0.08014408]
[1767745944010,0.08466318,93353.0,93326.0,0.08014408]
[1767745944305,0.08466318,93351.0,93326.0,0.08014408]
[1767745944506,0.09938683,93350.0,93326.0,0.08014408]
[1767745944807,0.09938683,93350.0,93340.0,0.010718]
[1767745945004,0.09938683,93350.0,93342.0,0.010718]
[1767745945602,0.09938683,93350.0,93330.0,0.010719]
[1767745945806,0.09938683,93350.0,93338.0,0.010718]
[1767745946006,0.09938683,93350.0,93340.0,0.010718]
[1767745946215,0.18405001,93350.0,93337.0,0.010718]
[1767745946698,0.09938683,93349.0,93339.0,0.010718]
[1767745946898,0.09938683,93351.0,93342.0,0.010718]
[1767745947307,0.09938683,93350.0,93326.0,0.17975245]
[1767745947505,0.08466318,93349.0,93321.0,0.01072]
[1767745947704,0.08466318,93349.0,93311.0,0.010721]
[1767745947705,0.08466318,93332.0,93311.0,0.010721]
[1767745947909,0.08466318,93317.0,93293.0,0.065174]
[1767745948110,0.18405001,93316.0,93305.0,0.010722]
[1767745948608,0.09938683,93322.0,93307.0,0.010722]
[1767745948809,0.09938683,93322.0,93304.0,0.010722]
[1767745949209,0.09938683,93320.0,93301.0,0.010722]
[1767745949402,0.01072,93322.0,93301.0,0.010722]
[1767745949403,0.18405001,93319.0,93301.0,0.010722]
[1767745949603,0.18405001,93318.0,93289.0,0.09112]
[1767745949803,0.09938683,93312.0,93279.0,0.010725]
[1767745950108,0.09938683,93312.0,93275.0,0.09927529]
[1767745950109,0.18405001,93304.0,93293.0,0.010723]
[1767745950411,0.09938683,93300.0,93286.0,0.09116]
[1767745950713,0.09938683,93300.0,93277.0,0.09116]
[1767745950908,0.09938683,93300.0,93289.0,0.010724]
[1767745951109,9.701e-05,93299.0,93289.0,0.010724]
[1767745952506,9.701e-05,93299.0,93282.0,0.010724]
[1767745952811,9.701e-05,93299.0,93277.0,0.09116]
[1767745953204,9.701e-05,93299.0,93291.0,0.010723]
[1767745953405,0.09431042,93313.0,93292.0,0.010723]
[1767745953600,0.09431042,93322.0,93290.0,0.0976691]
[1767745953804,0.09431042,93320.0,93305.0,0.010722]
[1767745954205,0.24925336,93376.0,93303.0,0.0976691]
[1767745954206,0.09431042,93329.0,93303.0,0.0976691]
[1767745954401,0.09116,93328.0,93315.0,0.010721]
[1767745954602,0.09431042,93329.0,93303.0,0.0976691]
[1767745954911,0.09116,93328.0,93312.0,0.010721]
[1767745955210,0.09431042,93327.0,93310.0,0.010721]
[1767745955410,0.09578227,93324.0,93312.0,0.010721]
[1767745955705,0.09578227,93318.0,93286.0,0.0976691]
[1767745955910,0.09578227,93315.0,93287.0,0.09116]
[1767745956105,0.09578227,93315.0,93307.0,0.010722]
[1767745956311,0.09578227,93315.0,93303.0,0.010722]
[1767745957008,0.09578227,93315.0,93297.0,0.010723]
[1767745957309,0.09578227,93315.0,93269.0,0.00214435]
[1767745957310,0.09431042,93314.0,93285.0,0.010724]
[1767745957509,0.09431042,93314.0,93250.0,0.11284147]
[1767745957510,0.19009269,93288.0,93255.0,0.09116]
[1767745957699,2.7e-07,93287.0,93279.0,0.010725]
[1767745957903,0.09431042,93294.0,93278.0,0.010725]
[1767745958107,0.09431042,93294.0,93263.0,0.010727]
[1767745958108,0.09431042,93292.0,93275.0,0.010725]
[1767745958308,0.09181042,93292.0,93275.0,0.010725]
[1767745958606,0.010721,93311.0,93257.0,0.010727]
[1767745958607,0.01072,93322.0,93268.0,0.0976691]
[1767745958813,0.010722,93303.0,93276.0,0.08123919]
[1767745959017,0.010722,93301.0,93280.0,0.010725]
[1767745959209,0.09116,93302.0,93277.0,0.0976691]
[1767745959407,0.09116,93301.0,93278.0,0.0976691]
[1767745959610,0.09116,93301.0,93287.0,0.010724]
[1767745960012,0.010722,93306.0,93287.0,0.010724]
[1767745960214,0.09116,93305.0,93283.0,0.010724]
[1767745960510,0.010722,93306.0,93278.0,0.08123919]
[1767745960716,0.09116,93305.0,93287.0,0.010724]
[1767745961111,0.09116,93305.0,93278.0,0.08123919]
[1767745961318,0.09116,93305.0,93281.0,0.0815365]
[1767745961517,0.09116,93304.0,93281.0,0.1792056]
[1767745961720,0.09431042,93315.0,93299.0,0.010722]
[1767745961920,0.09431042,93315.0,93285.0,0.0976691]
[1767745961921,0.01072,93321.0,93301.0,0.010722]
[1767745962219,0.09431042,93323.0,93301.0,0.010722]
[1767745962220,0.10188,93320.0,93301.0,0.010722]
[1767745962417,0.20081269,93318.0,93296.0,0.010723]
[1767745962715,0.09578227,93312.0,93296.0,0.010723]
[1767745963018,0.09431042,93310.0,93296.0,0.010723]
[1767745963620,0.09116,93313.0,93259.0,0.0976691]
[1767745963621,0.09431042,93300.0,93259.0,0.0976691]
[1767745963914,0.09431042,93311.0,93302.0,0.010722]
[1767745964117,0.09431042,93311.0,93301.0,0.010722]
[1767745964326,0.09116,93310.0,93301.0,0.010722]
[1767745964720,0.19009269,93319.0,93304.0,0.010722]
[1767745965021,0.10503042,93325.0,93308.0,0.010722]
[1767745965221,0.09116,93324.0,93305.0,0.010722]
[1767745965409,0.10503042,93325.0,93307.0,0.010722]
[1767745965611,0.09116,93323.0,93307.0,0.010722]
[1767745966018,0.09578227,93327.0,93321.0,0.01072]
[1767745966221,0.09116,93326.0,93318.0,0.01072]
[1767745966517,0.09578227,93335.0,93307.0,0.18531309]
[1767745966706,0.09578227,93335.0,93321.0,0.01072]
[1767745966909,0.09578227,93335.0,93325.0,0.010719]
[1767745967120,0.09116,93334.0,93310.0,0.1083901]
[1767745967620,0.09116,93334.0,93321.0,0.01072]
[1767745968925,0.19009269,93330.0,93303.0,0.010722]
[1767745969220,0.09116,93334.0,93310.0,0.010721]
[1767745969221,0.09578227,93325.0,93310.0,0.010721]
[1767745969422,0.09431042,93322.0,93290.0,0.12356547]
[1767745969719,0.19009269,93317.0,93304.0,0.010722]
[1767745969915,0.09431042,93307.0,93287.0,0.09116]
[1767745970314,0.09431042,93307.0,93296.0,0.010723]
[1767745970514,0.19009269,93307.0,93296.0,0.010723]
[1767745970715,0.09578227,93306.0,93287.0,0.02828]
[1767745970923,0.19009269,93305.0,93287.0,0.02828]
[1767745971524,0.19009269,93304.0,93292.0,0.010723]
[1767745971726,0.19009269,93304.0,93281.0,0.0624341]
[1767745972114,0.19009269,93304.0,93292.0,0.010723]
[1767745972332,0.19009269,93303.0,93280.0,0.09116]
[1767745972515,0.09578227,93302.0,93292.0,0.010723]
[1767745973228,0.18547042,93310.0,93298.0,0.010723]
[1767745973429,0.18547042,93310.0,93300.0,0.010722]
[1767745973627,0.18547042,93309.0,93296.0,0.010723]
[1767745973928,0.09116,93308.0,93296.0,0.010723]
[1767745974126,0.18547042,93308.0,93284.0,0.010724]
[1767745974321,0.18547042,93308.0,93295.0,0.010673]
[1767745974627,0.18547042,93308.0,93292.0,0.010723]
[1767745974821,0.09431042,93307.0,93292.0,0.010723]
[1767745975016,0.09431042,93307.0,93294.0,0.010723]
[1767745976211,0.09431042,93307.0,93283.0,0.0976691]
[1767745976920,0.09431042,93307.0,93295.0,0.010723]
[1767745977239,0.09116,93308.0,93297.0,0.010723]
[1767745977813,0.09431042,93314.0,93297.0,0.010723]
[1767745978019,0.01072,93318.0,93301.0,0.010722]
[1767745978321,0.09116,93317.0,93303.0,0.010722]
[1767745978521,0.09092235,93320.0,93303.0,0.010722]
[1767745978831,0.09116,93319.0,93303.0,0.010722]
[1767745979018,0.09092235,93318.0,93303.0,0.010722]
[1767745979427,0.09092235,93318.0,93295.0,0.09364019]
[1767745979627,0.0912,93317.0,93308.0,0.010721]
[1767745979925,0.0912,93317.0,93296.0,0.010723]
[1767745979926,0.19173335,93324.0,93301.0,0.09364019]
[1767745980134,0.0912,93323.0,93302.0,0.09364019]
[1767745980423,0.19173335,93321.0,93316.0,0.010721]
[1767745980629,0.19173335,93321.0,93301.0,0.010722]
[1767745980830,0.19173335,93321.0,93313.0,0.010721]
[1767745981025,1.18681236,93333.0,93321.0,0.01072]
[1767745981026,0.24925336,93333.0,93321.0,0.01072]
[1767745981225,0.34017571,93333.0,93321.0,0.01072]
[1767745981434,0.0912,93332.0,93321.0,0.01072]
[1767745981623,0.18892842,93332.0,93318.0,0.01072]
[1767745981824,0.09772842,93331.0,93315.0,0.010721]
[1767745982025,0.09772842,93326.0,93309.0,0.010721]
[1767745982221,0.09481389,93325.0,93309.0,0.010721]
[1767745982528,0.09772842,93324.0,93309.0,0.010721]
[1767745983325,0.19254231,93324.0,93309.0,0.010721]
[1767745983529,0.19254231,93323.0,93309.0,0.010721]
[1767745983743,0.19254231,93323.0,93306.0,0.010722]
[1767745985733,0.19254231,93320.0,93296.0,0.010723]
[1767745985935,0.09772842,93318.0,93307.0,0.010722]
[1767745987932,0.09481389,93319.0,93307.0,0.010722]
[1767745988130,0.19254231,93324.0,93307.0,0.010722]
[1767745988337,0.09772842,93321.0,93295.0,0.10663994]